[Event "Vienna Chess Open 2019"]
[Site "Vienna"]
[Date "2019.08.23"]
[Round "8.2"]
[White "Palac, Mladen"]
[Black "Stanec, Nikolaus"]
[Result "1/2-1/2"]
[ECO "B15"]
[WhiteElo "2551"]
[BlackElo "2483"]
[Annotator "ChessBase"]
[PlyCount "85"]
[EventDate "2019.08.17"]
[EventType "swiss"]
[EventCountry "AUT"]
[SourceTitle "playchess.com"]
[Source "ChessBase"]
[SourceQuality "1"]
[TimeControl "40/5400+30:1800+30"]

1. e4 {[%emt 0:08:45]} c6 {[%emt 0:00:00]} 2. d4 {[%emt 0:00:26]} d5 {[%emt 0:00:00]} 3. Nc3 {[%emt 0:00:14]} g6 {[%emt 0:01:23]} 4. Nf3 {[%emt 0:00:15]} Bg7 {[%emt 0:02:42]} 5. Be2 {[%emt 0:00:14]} dxe4 {[%emt 0:01:04]} 6. Nxe4 {[%emt 0:00:13]} Nf6 {[%emt 0:03:07]} 7. Nxf6+ {[%emt 0:00:35]} exf6 {[%emt 0:00:09]} 8. O-O {[%emt 0:01:05]} O-O {[%emt 0:00:10]} 9. Be3 {[%emt 0:00:53]} Re8 {[%emt 0:00:50]} 10. Re1 {[%emt 0:07:17]} Nd7 {[%emt 0:00:45]} 11. Qd2 {[%emt 0:03:25]} b6 {[%emt 0:09:07]} 12. a4 {[%emt 0:09:04]} a6 {[%emt 0:06:34]} 13. a5 {[%emt 0:12:14]} b5 {[%emt 0:00:15]} 14. c4 {[%emt 0:00:04]} bxc4 {[%emt 0:14:09]} 15. Bxc4 {[%emt 0:02:02]} Bb7 {[%emt 0:00:34]} 16. Qb4 {[%emt 0:06:28]} Bc8 {[%emt 0:11:48]} 17. Qb3 {[%emt 0:10:32]} Re7 {[%emt 0:01:34]} 18. d5 {[%emt 0:03:31]} cxd5 {[%emt 0:04:52]} 19. Bxd5 {[%emt 0:00:06]} Rb8 {[%emt 0:00:05]} 20. Qa2 {[%emt 0:00:29]} Bb7 {[%emt 0:02:08]} 21. Rad1 {[%emt 0:14:25]} Bxd5 {[%emt 0:06:15]} 22. Qxd5 {[%emt 0:00:47]} Qc8 {[%emt 0:02:44]} 23. Rc1 {[%emt 0:01:24]} Qe8 {[%emt 0:00:11]} 24. Red1 {[%emt 0:08:23]} Ne5 {[%emt 0:03:10]} 25. Nxe5 {[%emt 0:01:59]} Rxe5 {[%emt 0:00:09]} 26. Qd2 {[%emt 0:02:28]} Reb5 {[%emt 0:02:38]} 27. Bb6 {[%emt 0:00:34]} f5 {[%emt 0:03:04]} 28. b4 {[%emt 0:00:36]} Qe4 {[%emt 0:03:37]} 29. Rc7 {[%emt 0:03:29]} f4 {[%emt 0:10:00]} 30. Qd7 {[%emt 0:00:45]} Qe6 {[%emt 0:05:15]} 31. Qxe6 {[%emt 0:01:07]} fxe6 {[%emt 0:00:06]} 32. Ra7 {[%emt 0:00:08]} Rxb4 {[%emt 0:00:48]} 33. h3 {[%emt 0:00:55]} e5 {[%emt 0:01:26]} 34. Rxa6 {[%emt 0:00:38]} Re8 {[%emt 0:01:14]} 35. Ra7 {[%emt 0:00:23]} e4 {[%emt 0:00:07]} 36. Rad7 {[%emt 0:00:35]} Bf6 {[%emt 0:02:16]} 37. R7d6 {[%emt 0:01:26]} Be5 {[%emt 0:00:17]} 38. R6d2 {[%emt 0:00:17]} Ra4 {[%emt 0:00:24]} 39. Rc2 {[%emt 0:00:27]} Kf7 {[%emt 0:01:55]} 40. Kf1 {[%emt 0:00:14]} Ra3 {[%emt 0:01:38]} 41. Rc4 {[%emt 0:30:55]} Bb8 {[%emt 0:05:30]} 42. Re1 {[%emt 0:00:00]} e3 {[%emt 0:01:11]} 43. Rc2 1/2-1/2

[Event "Vienna Chess Open 2019"]
[Site "Vienna"]
[Date "2019.08.23"]
[Round "8.2"]
[White "Chyzy, Jakub"]
[Black "Hertneck, Gerald"]
[Result "0-1"]
[ECO "C16"]
[WhiteElo "2495"]
[BlackElo "2495"]
[Annotator "ChessBase"]
[PlyCount "86"]
[EventDate "2019.08.17"]
[EventType "swiss"]
[EventCountry "AUT"]
[SourceTitle "playchess.com"]
[Source "ChessBase"]
[SourceQuality "1"]
[TimeControl "40/5400+30:1800+30"]

1. e4 {[%emt 0:00:00]} e6 {[%emt 0:00:00]} 2. d4 {[%emt 0:00:00]} d5 {[%emt 0:00:00]} 3. Nc3 {[%emt 0:00:00]} Bb4 {[%emt 0:00:00]} 4. e5 {[%emt 0:00:00]} Ne7 {[%emt 0:00:00]} 5. Bd2 {[%emt 0:00:00]} b6 {[%emt 0:00:20]} 6. a3 {[%emt 0:00:08]} Bxc3 {[%emt 0:00:06]} 7. Bxc3 {[%emt 0:00:05]} O-O {[%emt 0:01:26]} 8. f4 {[%emt 0:04:01]} c5 {[%emt 0:00:14]} 9. Nf3 {[%emt 0:01:53]} Nf5 {[%emt 0:00:57]} 10. Bd3 {[%emt 0:04:57]} Nc6 {[%emt 0:00:34]} 11. Bxf5 {[%emt 0:05:50]} exf5 {[%emt 0:00:06]} 12. O-O {[%emt 0:00:23]} Be6 {[%emt 0:00:11]} 13. Be1 {[%emt 0:14:47]} Qc7 {[%emt 0:03:06]} 14. Bf2 {[%emt 0:01:05]} Rfc8 {[%emt 0:02:59]} 15. b3 {[%emt 0:08:32]} Ne7 {[%emt 0:02:41]} 16. c3 {[%emt 0:02:37]} a5 {[%emt 0:00:59]} 17. Qd2 {[%emt 0:06:07]} a4 {[%emt 0:00:21]} 18. b4 {[%emt 0:01:14]} cxb4 {[%emt 0:00:06]} 19. cxb4 {[%emt 0:00:08]} Qd7 {[%emt 0:04:08]} 20. Rfc1 {[%emt 0:10:03]} Rc4 {[%emt 0:00:22]} 21. Qb2 {[%emt 0:04:45]} Rac8 {[%emt 0:02:54]} 22. Nd2 {[%emt 0:02:05]} Qb5 {[%emt 0:09:29]} 23. Nxc4 {[%emt 0:03:08]} dxc4 {[%emt 0:00:06]} 24. Be1 {[%emt 0:05:22]} Bd5 {[%emt 0:02:13]} 25. Bc3 {[%emt 0:00:56]} Rc6 {[%emt 0:00:10]} 26. g3 {[%emt 0:10:30]} Rh6 {[%emt 0:03:58]} 27. h4 {[%emt 0:04:42]} Be4 {[%emt 0:01:07]} 28. Kf2 {[%emt 0:03:44]} Nd5 {[%emt 0:00:06]} 29. Rg1 {[%emt 0:03:50]} Qc6 {[%emt 0:02:09]} 30. b5 {[%emt 0:02:30]} Qg6 {[%emt 0:00:06]} 31. Rac1 {[%emt 0:00:28]} Qg4 {[%emt 0:01:19]} 32. Qe2 {[%emt 0:00:27]} Qh3 {[%emt 0:02:52]} 33. Qf1 {[%emt 0:01:16]} Rxh4 {[%emt 0:01:56]} 34. Qxh3 {[%emt 0:00:55]} Rxh3 {[%emt 0:00:07]} 35. Rg2 {[%emt 0:00:28]} h5 {[%emt 0:00:14]} 36. Be1 {[%emt 0:00:20]} Rh1 {[%emt 0:00:57]} 37. Bd2 {[%emt 0:00:41]} Rxc1 {[%emt 0:01:34]} 38. Bxc1 {[%emt 0:00:02]} Bxg2 {[%emt 0:00:07]} 39. Kxg2 {[%emt 0:00:03]} Kf8 {[%emt 0:00:21]} 40. Kf3 {[%emt 0:01:10]} Ke7 {[%emt 0:00:06]} 41. Ke2 {[%emt 0:20:22]} Ke6 {[%emt 0:00:00]} 42. Kd2 {[%emt 0:00:30]} Nc7 {[%emt 0:00:00]} 43. Kc3 {[%emt 0:00:46]} Kd5 {[%emt 0:00:00]} 0-1

[Event "Vienna Chess Open 2019"]
[Site "Vienna"]
[Date "2019.08.23"]
[Round "8.2"]
[White "Zeller, Frank"]
[Black "Janik, Igor"]
[Result "1/2-1/2"]
[ECO "A21"]
[WhiteElo "2371"]
[BlackElo "2483"]
[Annotator "ChessBase"]
[PlyCount "70"]
[EventDate "2019.08.17"]
[EventType "swiss"]
[EventCountry "AUT"]
[SourceTitle "playchess.com"]
[Source "ChessBase"]
[SourceQuality "1"]
[TimeControl "40/5400+30:1800+30"]

1. c4 {[%emt 0:00:00]} e5 {[%emt 0:00:00]} 2. Nc3 {[%emt 0:00:13]} Bb4 {[%emt 0:00:00]} 3. Nf3 {[%emt 0:04:25]} Bxc3 {[%emt 0:00:49]} 4. dxc3 {[%emt 0:00:18]} d6 {[%emt 0:01:50]} 5. c5 {[%emt 0:03:51]} Nf6 {[%emt 0:02:07]} 6. cxd6 {[%emt 0:04:30]} cxd6 {[%emt 0:00:09]} 7. g3 {[%emt 0:05:36]} h6 {[%emt 0:01:55]} 8. Bg2 {[%emt 0:00:27]} O-O {[%emt 0:00:28]} 9. O-O {[%emt 0:00:36]} Nc6 {[%emt 0:01:51]} 10. b3 {[%emt 0:01:26]} d5 {[%emt 0:01:50]} 11. c4 {[%emt 0:03:47]} dxc4 {[%emt 0:07:37]} 12. Bb2 {[%emt 0:01:16]} e4 {[%emt 0:15:07]} 13. Nd2 {[%emt 0:19:07]} cxb3 {[%emt 0:00:34]} 14. Bxf6 {[%emt 0:16:41]} Qxf6 {[%emt 0:00:50]} 15. Nxe4 {[%emt 0:00:07]} Qe5 {[%emt 0:00:53]} 16. Qxb3 {[%emt 0:05:42]} Nd4 {[%emt 0:00:20]} 17. Qd1 {[%emt 0:00:30]} Rd8 {[%emt 0:06:50]} 18. e3 {[%emt 0:00:16]} Nc6 {[%emt 0:02:23]} 19. Qc1 {[%emt 0:03:09]} Bf5 {[%emt 0:03:29]} 20. Qc5 {[%emt 0:06:45]} Qe6 {[%emt 0:02:35]} 21. Nc3 {[%emt 0:00:25]} Rac8 {[%emt 0:01:35]} 22. Nd5 {[%emt 0:01:17]} b6 {[%emt 0:03:05]} 23. Qb5 {[%emt 0:02:33]} Ne5 {[%emt 0:04:46]} 24. Nf4 {[%emt 0:00:27]} Qd6 {[%emt 0:00:10]} 25. h3 {[%emt 0:07:17]} g5 {[%emt 0:06:50]} 26. Rad1 {[%emt 0:00:35]} Qxd1 {[%emt 0:00:08]} 27. Rxd1 {[%emt 0:01:00]} Rxd1+ {[%emt 0:00:06]} 28. Kh2 {[%emt 0:00:03]} gxf4 {[%emt 0:10:53]} 29. Qxe5 {[%emt 0:01:29]} fxg3+ {[%emt 0:00:10]} 30. Qxg3+ {[%emt 0:00:06]} Bg6 {[%emt 0:00:07]} 31. Be4 {[%emt 0:00:13]} Rcc1 {[%emt 0:01:11]} 32. Qb8+ {[%emt 0:00:15]} Kg7 {[%emt 0:01:28]} 33. Qe5+ {[%emt 0:00:32]} Kh7 {[%emt 0:02:10]} 34. Qe7 {[%emt 0:02:05]} Kg7 {[%emt 0:00:43]} 35. Qe5+ {[%emt 0:00:16]} Kh7 {[%emt 0:00:17]} 1/2-1/2

[Event "Vienna Chess Open 2019"]
[Site "Vienna"]
[Date "2019.08.23"]
[Round "8.3"]
[White "Bick, Gabriel"]
[Black "Dastan, Muhammed Batuhan"]
[Result "1-0"]
[ECO "B54"]
[WhiteElo "2375"]
[BlackElo "2582"]
[Annotator "ChessBase"]
[PlyCount "53"]
[EventDate "2019.08.17"]
[EventType "swiss"]
[EventCountry "AUT"]
[SourceTitle "playchess.com"]
[Source "ChessBase"]
[SourceQuality "1"]
[TimeControl "40/5400+30:1800+30"]

1. e4 {[%emt 0:00:00]} c5 {[%emt 0:00:00]} 2. Nf3 {[%emt 0:00:00]} d6 {[%emt 0:00:00]} 3. d4 {[%emt 0:00:00]} cxd4 {[%emt 0:00:00]} 4. Nxd4 {[%emt 0:00:00]} Nf6 {[%emt 0:00:00]} 5. f3 {[%emt 0:00:02]} e5 {[%emt 0:00:11]} 6. Nb3 {[%emt 0:00:07]} Be6 {[%emt 0:00:10]} 7. c4 {[%emt 0:00:08]} Nbd7 {[%emt 0:00:19]} 8. Nc3 {[%emt 0:00:11]} Rc8 {[%emt 0:02:45]} 9. Be3 {[%emt 0:00:11]} Bxc4 {[%emt 0:00:03]} 10. Bxc4 {[%emt 0:00:11]} Rxc4 {[%emt 0:00:03]} 11. Qd3 {[%emt 0:00:12]} Rc6 {[%emt 0:00:04]} 12. g4 {[%emt 0:01:05]} Be7 {[%emt 0:10:24]} 13. O-O-O {[%emt 0:00:31]} O-O {[%emt 0:07:11]} 14. Kb1 {[%emt 0:01:08]} a6 {[%emt 0:28:22]} 15. h4 {[%emt 0:02:03]} b5 {[%emt 0:01:19]} 16. g5 {[%emt 0:05:30]} Ne8 {[%emt 0:13:20]} 17. Nd5 {[%emt 0:03:09]} Rc4 {[%emt 0:03:30]} 18. Qd2 {[%emt 0:17:15]} Rc8 {[%emt 0:03:15]} 19. Na5 {[%emt 0:07:50]} Nb8 {[%emt 0:01:39]} 20. Rc1 {[%emt 0:04:06]} Rc5 {[%emt 0:04:30]} 21. Bxc5 {[%emt 0:05:42]} dxc5 {[%emt 0:00:04]} 22. Nb7 {[%emt 0:02:02]} Qd7 {[%emt 0:00:01]} 23. Nxc5 {[%emt 0:00:54]} Bxc5 {[%emt 0:00:28]} 24. Rxc5 {[%emt 0:00:04]} Nd6 {[%emt 0:00:07]} 25. Rd1 {[%emt 0:08:01]} Rd8 {[%emt 0:00:30]} 26. Nb6 {[%emt 0:06:13]} Qb7 {[%emt 0:01:16]} 27. Rd5 {[%emt 0:02:13]} 1-0

[Event "Vienna Chess Open 2019"]
[Site "Vienna"]
[Date "2019.08.23"]
[Round "8.3"]
[White "Schreiner, Peter"]
[Black "Paltrinieri, Nicholas"]
[Result "1/2-1/2"]
[ECO "A96"]
[WhiteElo "2310"]
[BlackElo "2481"]
[Annotator "ChessBase"]
[PlyCount "81"]
[EventDate "2019.08.17"]
[EventType "swiss"]
[EventCountry "AUT"]
[SourceTitle "playchess.com"]
[Source "ChessBase"]
[SourceQuality "1"]
[TimeControl "40/5400+30:1800+30"]

1. Nf3 {[%emt 0:00:28]} e6 {[%emt 0:00:00]} 2. g3 {[%emt 0:00:05]} f5 {[%emt 0:00:00]} 3. Bg2 {[%emt 0:00:03]} Nf6 {[%emt 0:00:00]} 4. O-O {[%emt 0:00:07]} d6 {[%emt 0:00:00]} 5. d4 {[%emt 0:00:28]} Be7 {[%emt 0:00:00]} 6. c4 {[%emt 0:00:14]} O-O {[%emt 0:00:00]} 7. Nc3 {[%emt 0:00:05]} Ne4 {[%emt 0:00:05]} 8. Qc2 {[%emt 0:02:29]} Nxc3 {[%emt 0:00:05]} 9. Qxc3 {[%emt 0:02:55]} a5 {[%emt 0:00:05]} 10. c5 {[%emt 0:18:19]} Bf6 {[%emt 0:17:18]} 11. cxd6 {[%emt 0:07:10]} cxd6 {[%emt 0:00:08]} 12. b3 {[%emt 0:00:41]} Bd7 {[%emt 0:17:31]} 13. Ba3 {[%emt 0:08:51]} Qb6 {[%emt 0:00:28]} 14. e3 {[%emt 0:06:35]} Rc8 {[%emt 0:01:07]} 15. Qd2 {[%emt 0:05:47]} Na6 {[%emt 0:00:04]} 16. Rfc1 {[%emt 0:01:28]} Nc7 {[%emt 0:09:12]} 17. Ne1 {[%emt 0:06:08]} Be7 {[%emt 0:07:38]} 18. Nd3 {[%emt 0:05:12]} Bf8 {[%emt 0:01:35]} 19. h4 {[%emt 0:03:06]} Be8 {[%emt 0:11:19]} 20. Nf4 {[%emt 0:03:53]} Nb5 {[%emt 0:11:46]} 21. Bb2 {[%emt 0:02:17]} d5 {[%emt 0:00:04]} 22. a4 {[%emt 0:08:04]} Nd6 {[%emt 0:01:00]} 23. Ba3 {[%emt 0:06:35]} Rxc1+ {[%emt 0:07:02]} 24. Qxc1 {[%emt 0:03:28]} Bd7 {[%emt 0:00:04]} 25. Qb2 {[%emt 0:02:30]} Rc8 {[%emt 0:00:04]} 26. Bc5 {[%emt 0:01:03]} Qc7 {[%emt 0:00:55]} 27. Nd3 {[%emt 0:01:31]} b6 {[%emt 0:00:31]} 28. Ba3 {[%emt 0:00:14]} Qc3 {[%emt 0:01:49]} 29. Ne5 {[%emt 0:00:52]} Qxb2 {[%emt 0:00:32]} 30. Bxb2 {[%emt 0:00:02]} Be8 {[%emt 0:05:15]} 31. Rc1 {[%emt 0:00:46]} Rxc1+ {[%emt 0:00:05]} 32. Bxc1 {[%emt 0:00:04]} Nf7 {[%emt 0:02:12]} 33. Nd3 {[%emt 0:00:45]} Bd6 {[%emt 0:00:39]} 34. Bd2 {[%emt 0:02:10]} Kf8 {[%emt 0:01:17]} 35. Kf1 {[%emt 0:01:01]} Ke7 {[%emt 0:00:22]} 36. Ke2 {[%emt 0:00:39]} h6 {[%emt 0:00:28]} 37. Kd1 {[%emt 0:01:09]} g5 {[%emt 0:00:30]} 38. hxg5 {[%emt 0:00:01]} hxg5 {[%emt 0:00:05]} 39. Bf1 {[%emt 0:01:11]} g4 {[%emt 0:01:10]} 40. Nf4 {[%emt 0:00:31]} Ng5 {[%emt 0:00:55]} 41. Bd3 {[%emt 0:01:14]} 1/2-1/2

[Event "Vienna Chess Open 2019"]
[Site "Vienna"]
[Date "2019.08.23"]
[Round "8.4"]
[White "Buckels, Valentin"]
[Black "Belous, Mikhail"]
[Result "1/2-1/2"]
[ECO "A05"]
[WhiteElo "2453"]
[BlackElo "2308"]
[Annotator "ChessBase"]
[PlyCount "117"]
[EventDate "2019.08.17"]
[EventType "swiss"]
[EventCountry "AUT"]
[SourceTitle "playchess.com"]
[Source "ChessBase"]
[SourceQuality "1"]
[TimeControl "40/5400+30:1800+30"]

1. Nf3 {[%emt 0:00:02]} Nf6 {[%emt 0:00:00]} 2. g3 {[%emt 0:00:04]} g6 {[%emt 0:00:00]} 3. b3 {[%emt 0:00:04]} Bg7 {[%emt 0:00:13]} 4. Bb2 {[%emt 0:00:04]} O-O {[%emt 0:00:36]} 5. Bg2 {[%emt 0:00:17]} d6 {[%emt 0:00:27]} 6. d4 {[%emt 0:00:09]} Nbd7 {[%emt 0:00:21]} 7. O-O {[%emt 0:00:23]} Re8 {[%emt 0:00:59]} 8. c4 {[%emt 0:10:07]} c6 {[%emt 0:00:39]} 9. Nc3 {[%emt 0:07:07]} e5 {[%emt 0:02:33]} 10. e4 {[%emt 0:01:15]} exd4 {[%emt 0:05:29]} 11. Nxd4 {[%emt 0:00:02]} Nc5 {[%emt 0:01:02]} 12. Re1 {[%emt 0:00:27]} Ng4 {[%emt 0:01:44]} 13. h3 {[%emt 0:21:45]} Ne5 {[%emt 0:02:50]} 14. Re3 {[%emt 0:00:48]} Qb6 {[%emt 0:08:46]} 15. Nc2 {[%emt 0:04:43]} Bh6 {[%emt 0:25:59]} 16. f4 {[%emt 0:04:37]} Ned3 {[%emt 0:02:09]} 17. Ba3 {[%emt 0:00:44]} a5 {[%emt 0:04:59]} 18. Na4 {[%emt 0:03:53]} Nxa4 {[%emt 0:04:00]} 19. Qxd3 {[%emt 0:00:44]} Nc5 {[%emt 0:01:18]} 20. Qxd6 {[%emt 0:07:53]} Bf8 {[%emt 0:01:46]} 21. Qd4 {[%emt 0:00:33]} Rd8 {[%emt 0:01:54]} 22. Qc3 {[%emt 0:03:34]} Bg7 {[%emt 0:05:49]} 23. e5 {[%emt 0:00:12]} Bf5 {[%emt 0:00:48]} 24. Nd4 {[%emt 0:02:33]} Na4 {[%emt 0:00:59]} 25. bxa4 {[%emt 0:04:40]} Qxd4 {[%emt 0:00:10]} 26. Bb2 {[%emt 0:04:37]} Qxc3 {[%emt 0:03:17]} 27. Bxc3 {[%emt 0:00:47]} Bf8 {[%emt 0:00:54]} 28. Kh2 {[%emt 0:01:21]} Bc5 {[%emt 0:04:55]} 29. Re2 {[%emt 0:00:01]} Rd3 {[%emt 0:05:09]} 30. Bb2 {[%emt 0:02:21]} Rad8 {[%emt 0:01:01]} 31. Rae1 {[%emt 0:04:40]} Bb4 {[%emt 0:00:40]} 32. Rf1 {[%emt 0:00:13]} Rd2 {[%emt 0:00:51]} 33. Rff2 {[%emt 0:01:27]} Rxe2 {[%emt 0:04:38]} 34. Rxe2 {[%emt 0:00:00]} Bd3 {[%emt 0:00:14]} 35. Re3 {[%emt 0:02:12]} Bxc4 {[%emt 0:01:23]} 36. a3 {[%emt 0:00:57]} Bd2 {[%emt 0:02:35]} 37. Re4 {[%emt 0:01:01]} Bd3 {[%emt 0:00:34]} 38. Rd4 {[%emt 0:00:31]} Rxd4 {[%emt 0:00:15]} 39. Bxd4 {[%emt 0:00:01]} Bc2 {[%emt 0:01:14]} 40. Bf1 {[%emt 0:02:27]} Bxa4 {[%emt 0:00:27]} 41. Kg2 {[%emt 0:32:22]} Bd1 {[%emt 0:18:11]} 42. Bc4 {[%emt 0:00:00]} b5 {[%emt 0:00:51]} 43. e6 {[%emt 0:00:00]} fxe6 {[%emt 0:00:54]} 44. Bxe6+ {[%emt 0:00:00]} Kf8 {[%emt 0:00:08]} 45. Bd7 {[%emt 0:00:00]} b4 {[%emt 0:00:35]} 46. axb4 {[%emt 0:00:00]} axb4 {[%emt 0:00:06]} 47. Bxc6 {[%emt 0:00:00]} Ke7 {[%emt 0:02:21]} 48. Be4 {[%emt 0:00:00]} Ke6 {[%emt 0:02:10]} 49. Kf2 {[%emt 0:00:00]} b3 {[%emt 0:01:36]} 50. Bb2 {[%emt 0:00:00]} Bc2 {[%emt 0:01:47]} 51. Ke2 {[%emt 0:00:00]} Bxe4 {[%emt 0:02:54]} 52. Kxd2 {[%emt 0:00:00]} Bg2 {[%emt 0:00:15]} 53. h4 {[%emt 0:00:00]} Kf5 {[%emt 0:00:11]} 54. Ke3 {[%emt 0:00:00]} Bc6 {[%emt 0:00:37]} 55. Bh8 {[%emt 0:00:00]} Kg4 {[%emt 0:02:27]} 56. Kf2 {[%emt 0:00:00]} Kf5 {[%emt 0:00:17]} 57. Ke3 {[%emt 0:00:00]} Kg4 {[%emt 0:00:13]} 58. Kf2 {[%emt 0:00:00]} Kf5 {[%emt 0:00:11]} 59. Ke3 {[%emt 0:00:00] Ke5 Ke4+} 1/2-1/2

[Event "Vienna Chess Open 2019"]
[Site "Vienna"]
[Date "2019.08.23"]
[Round "8.4"]
[White "Bawart, Markus"]
[Black "Ankit, R. Rajpara"]
[Result "1-0"]
[ECO "A45"]
[WhiteElo "2364"]
[BlackElo "2454"]
[Annotator "ChessBase"]
[PlyCount "69"]
[EventDate "2019.08.17"]
[EventType "swiss"]
[EventCountry "AUT"]
[SourceTitle "playchess.com"]
[Source "ChessBase"]
[SourceQuality "1"]
[TimeControl "40/5400+30:1800+30"]

1. d4 {[%emt 0:00:00]} Nf6 {[%emt 0:00:00]} 2. Bf4 {[%emt 0:00:00]} e6 {[%emt 0:01:07]} 3. e3 {[%emt 0:00:06]} d5 {[%emt 0:01:29]} 4. Nf3 {[%emt 0:01:06]} Bd6 {[%emt 0:00:18]} 5. Bd3 {[%emt 0:01:15]} O-O {[%emt 0:00:19]} 6. O-O {[%emt 0:00:14]} b6 {[%emt 0:00:13]} 7. Nbd2 {[%emt 0:02:43]} Ba6 {[%emt 0:00:45]} 8. Ne5 {[%emt 0:00:56]} c5 {[%emt 0:03:54]} 9. Bxa6 {[%emt 0:03:39]} Nxa6 {[%emt 0:00:29]} 10. Bg5 {[%emt 0:00:13]} Nb8 {[%emt 0:06:30]} 11. Qf3 {[%emt 0:04:01]} Be7 {[%emt 0:03:17]} 12. c4 {[%emt 0:14:25]} cxd4 {[%emt 0:14:02]} 13. exd4 {[%emt 0:05:01]} Qd6 {[%emt 0:03:54]} 14. cxd5 {[%emt 0:12:34]} Nxd5 {[%emt 0:02:12]} 15. Ndc4 {[%emt 0:00:22]} Qc7 {[%emt 0:05:56]} 16. Bxe7 {[%emt 0:06:54]} Qxe7 {[%emt 0:00:05]} 17. Ne3 {[%emt 0:00:29]} Nxe3 {[%emt 0:01:21]} 18. fxe3 {[%emt 0:00:16]} Na6 {[%emt 0:00:53]} 19. Nc6 {[%emt 0:05:36]} Qd7 {[%emt 0:18:32]} 20. Rac1 {[%emt 0:00:36]} f6 {[%emt 0:01:57]} 21. b4 {[%emt 0:02:56]} Nc7 {[%emt 0:01:12]} 22. e4 {[%emt 0:01:02]} Nb5 {[%emt 0:02:12]} 23. Qd3 {[%emt 0:02:43]} Nd6 {[%emt 0:01:29]} 24. b5 {[%emt 0:00:46]} Kh8 {[%emt 0:07:02]} 25. a4 {[%emt 0:03:25]} Rac8 {[%emt 0:01:40]} 26. d5 {[%emt 0:01:44]} Nb7 {[%emt 0:01:48]} 27. Qh3 {[%emt 0:00:51]} Nc5 {[%emt 0:00:54]} 28. Rxc5 {[%emt 0:00:53]} bxc5 {[%emt 0:00:16]} 29. Qxe6 {[%emt 0:01:01]} Qxe6 {[%emt 0:01:49]} 30. dxe6 {[%emt 0:01:46]} a6 {[%emt 0:05:07]} 31. Rd1 {[%emt 0:03:39]} Rfe8 {[%emt 0:04:40]} 32. Rd6 {[%emt 0:01:57]} axb5 {[%emt 0:01:30]} 33. axb5 {[%emt 0:00:02]} Rc7 {[%emt 0:00:36]} 34. b6 {[%emt 0:01:30]} Rb7 {[%emt 0:00:05]} 35. Rd8 {[%emt 0:00:58]} 1-0

[Event "Vienna Chess Open 2019"]
[Site "Vienna"]
[Date "2019.08.23"]
[Round "8.5"]
[White "Moucheroud, Jeremy"]
[Black "Haldorsen, Benjamin"]
[Result "1-0"]
[ECO "B48"]
[WhiteElo "2452"]
[BlackElo "2452"]
[Annotator "ChessBase"]
[PlyCount "65"]
[EventDate "2019.08.17"]
[EventType "swiss"]
[EventCountry "AUT"]
[SourceTitle "playchess.com"]
[Source "ChessBase"]
[SourceQuality "1"]
[TimeControl "40/5400+30:1800+30"]

1. e4 {[%emt 0:13:26]} c5 {[%emt 0:00:20]} 2. Nf3 {[%emt 0:00:07]} e6 {[%emt 0:00:14]} 3. d4 {[%emt 0:00:07]} cxd4 {[%emt 0:00:07]} 4. Nxd4 {[%emt 0:00:01]} Nc6 {[%emt 0:00:08]} 5. Nc3 {[%emt 0:00:15]} Qc7 {[%emt 0:00:08]} 6. Be3 {[%emt 0:03:19]} a6 {[%emt 0:00:07]} 7. Qf3 {[%emt 0:00:29]} d6 {[%emt 0:00:09]} 8. O-O-O {[%emt 0:00:39]} Bd7 {[%emt 0:00:06]} 9. Qg3 {[%emt 0:05:07]} Nf6 {[%emt 0:09:54]} 10. f4 {[%emt 0:13:11]} b5 {[%emt 0:00:59]} 11. Nxc6 {[%emt 0:13:27]} Bxc6 {[%emt 0:00:14]} 12. e5 {[%emt 0:00:36]} dxe5 {[%emt 0:22:02]} 13. fxe5 {[%emt 0:00:02]} Nd5 {[%emt 0:00:44]} 14. Nxd5 {[%emt 0:07:52]} Bxd5 {[%emt 0:00:36]} 15. Kb1 {[%emt 0:00:01]} g6 {[%emt 0:05:56]} 16. Bd3 {[%emt 0:04:48]} Bg7 {[%emt 0:02:49]} 17. Bf4 {[%emt 0:03:43]} O-O {[%emt 0:02:57]} 18. h4 {[%emt 0:01:15]} h5 {[%emt 0:01:10]} 19. Rhg1 {[%emt 0:05:41]} Qa5 {[%emt 0:12:56]} 20. b3 {[%emt 0:00:38]} Qc3 {[%emt 0:00:37]} 21. Qe1 {[%emt 0:07:54]} Rfc8 {[%emt 0:02:17]} 22. Qxc3 {[%emt 0:02:19]} Rxc3 {[%emt 0:00:02]} 23. Rdf1 {[%emt 0:00:44]} b4 {[%emt 0:14:02]} 24. g4 {[%emt 0:01:28]} hxg4 {[%emt 0:00:06]} 25. Rxg4 {[%emt 0:00:22]} Rcc8 {[%emt 0:05:09]} 26. Rg3 {[%emt 0:06:10]} Kf8 {[%emt 0:02:15]} 27. Bd2 {[%emt 0:03:46]} Bxe5 {[%emt 0:00:15]} 28. Rxg6 {[%emt 0:01:05]} a5 {[%emt 0:00:59]} 29. Bh6+ {[%emt 0:01:06]} Ke7 {[%emt 0:02:30]} 30. Bg5+ {[%emt 0:00:09]} Kd6 {[%emt 0:01:17]} 31. Rxf7 {[%emt 0:00:36]} Rf8 {[%emt 0:04:53]} 32. Be7+ {[%emt 0:00:13]} Kc6 {[%emt 0:01:12]} 33. Rxf8 {[%emt 0:00:40]} 1-0

[Event "Vienna Chess Open 2019"]
[Site "Vienna"]
[Date "2019.08.23"]
[Round "8.5"]
[White "Bakhmatsky, Vladislav"]
[Black "Kojima, Shinya"]
[Result "1/2-1/2"]
[ECO "B12"]
[WhiteElo "2442"]
[BlackElo "2390"]
[Annotator "NA"]
[PlyCount "47"]
[EventDate "2019.08.17"]
[EventType "swiss"]
[EventCountry "AUT"]
[SourceTitle "playchess.com"]
[Source "ChessBase"]
[SourceQuality "1"]
[TimeControl "40/5400+30:1800+30"]

1. e4 {[%emt 0:00:00]} c6 {[%emt 0:00:00]} 2. d4 {[%emt 0:00:00]} d5 {[%emt 0:00:00]} 3. e5 {[%emt 0:00:00]} Bf5 {[%emt 0:00:00]} 4. Nf3 {[%emt 0:00:53]} e6 {[%emt 0:00:00]} 5. Be2 {[%emt 0:00:03]} Ne7 {[%emt 0:00:01]} 6. O-O {[%emt 0:01:56]} Bg6 {[%emt 0:00:06]} 7. Nbd2 {[%emt 0:00:49]} c5 {[%emt 0:01:38]} 8. c4 {[%emt 0:10:04]} cxd4 {[%emt 0:00:20]} 9. Nxd4 {[%emt 0:01:17]} Nec6 {[%emt 0:00:15]} 10. N2f3 {[%emt 0:04:35]} dxc4 {[%emt 0:02:28]} 11. Bxc4 {[%emt 0:22:45]} Be7 {[%emt 0:00:12]} 12. Qa4 {[%emt 0:20:55]} O-O {[%emt 0:03:56]} 13. Rd1 {[%emt 0:00:52]} Qa5 {[%emt 0:08:17]} 14. Qxa5 {[%emt 0:02:15]} Nxa5 {[%emt 0:00:12]} 15. Be2 {[%emt 0:01:22]} Rd8 {[%emt 0:02:53]} 16. Bf4 {[%emt 0:05:45]} Nbc6 {[%emt 0:05:56]} 17. Nb5 {[%emt 0:05:51]} a6 {[%emt 0:19:17]} 18. Nd6 {[%emt 0:07:33]} Rd7 {[%emt 0:02:30]} 19. Bd2 {[%emt 0:05:48]} f6 {[%emt 0:02:32]} 20. Nc4 {[%emt 0:01:19]} Nxc4 {[%emt 0:00:44]} 21. Bxc4 {[%emt 0:00:01]} Bf7 {[%emt 0:04:09]} 22. Bc3 {[%emt 0:01:31]} Rad8 {[%emt 0:02:15]} 23. Rxd7 {[%emt 0:00:57]} Rxd7 {[%emt 0:00:05]} 24. a3 {[%emt 0:00:41]} 1/2-1/2